Cogmind - Beta 12 @@@ ROGUE MODE // 2023.08.05 @ 18:07:18 Player: Roxy Result: Destroyed by B-75 Beast with Heavy Plasma Cannon Performance ------------- Evolutions (4) 2000 Regions Visited (7) 1400 Robots Destroyed (79) 395 Value Destroyed (3226) 3226 Prototype IDs (1) 20 Alien Tech Used (0) 0 Bonus (38) 38 TOTAL SCORE: 7079 Bonus ------- High Alert Combat Kills 63 Friendly Fire -25 Cogmind --------- Core Integrity 0/850 Matter 294/300 Energy 98/100 System Corruption 4% Temperature Cool (18) Movement Core (50) Location -6/Extension Parts ------- > --- POWER (2) -------- (None) > --- PROPULSION (5) --- (None) > --- UTILITY (4) ------ Scrap Engine Signal Interpreter Advanced Targeting Computer > --- WEAPON (4) ------- (None) > --- INVENTORY (5) ---- Light Nuclear Core Improved Heat Sink Trap Extractor (0/4) Peak State ------------ > --- POWER ------------ Light Nuclear Core > --- PROPULSION ------- Aluminum Leg Aluminum Leg Improved Carbon-fiber Leg Improved Carbon-fiber Leg Improved Titanium Leg > --- UTILITY ---------- Large Storage Unit Enhanced Optical Array Signal Interpreter Advanced Targeting Computer > --- WEAPON ----------- Heavy Ion Cannon Advanced Assault Cannon Rocket Launcher > --- INVENTORY -------- Scrap Engine Cryofiber Web Improved Heat Sink Reaction Control System Trap Extractor Lightning Gun Particle Gun High-powered Shotgun [Rating: 40] Favorites ----------- Power Ion Engine Engine Ion Engine Power Core Micro Nuclear Core Propulsion Aluminum Leg Leg Aluminum Leg Utility Signal Interpreter Device Improved Heat Sink Storage Large Storage Unit Processor Signal Interpreter Protection Medium Reactive Plating Weapon Medium Laser Energy Gun Medium Laser Energy Cannon Plasma Cannon Ballistic Gun Shotgun Ballistic Cannon Advanced Assault Cannon Launcher Rocket Launcher Build | -11 -10 -9 -9 -9 -7 -6 -6 ------- Run | Jun Mat Mat Sto Rec Fac Fac Ext Slots Evolved 8 | . . 2 . . 4 2 . Power 1 | . . . . . . 1 . Propulsion 3 | . . 2 . . . 1 . Utility 2 | . . . . . 2 . . Weapon 2 | . . . . . 2 . . Parts Attached 79 | 6 1 6 5 1 44 15 1 Power 10 | 1 . . 2 . 5 2 . Engine 8 | 1 . . 2 . 3 2 . Core 2 | . . . . . 2 . . Reactor . | . . . . . . . . Propulsion 27 | 2 . 4 1 . 15 5 . Treads . | . . . . . . . . Leg 27 | 2 . 4 1 . 15 5 . Wheel . | . . . . . . . . Hover . | . . . . . . . . Flight . | . . . . . . . . Utility 14 | 1 1 1 . . 6 5 . Device 7 | . . . . . 5 2 . Storage 2 | 1 . 1 . . . . . Processor 3 | . 1 . . . . 2 . Hackware . | . . . . . . . . Protection 2 | . . . . . 1 1 . Artifact . | . . . . . . . . Weapon 28 | 2 . 1 2 1 18 3 1 Energy Gun 8 | . . . 1 . 5 2 . Energy Cannon 3 | . . . . . 3 . . Ballistic Gun 10 | 2 . . . 1 5 1 1 Ballistic Cannon 4 | . . 1 . . 3 . . Launcher 3 | . . . 1 . 2 . . Special Weapon . | . . . . . . . . Impact Weapon . | . . . . . . . . Slashing Weapon . | . . . . . . . . Piercing Weapon . | . . . . . . . . Special Melee Weapon . | . . . . . . . . Unidentified Prototypes 1 | . . . . . 1 . . Parts Lost 59 | . . 2 4 . 31 21 1 Power 9 | . . . 2 . 4 3 . Propulsion 25 | . . 2 1 . 13 9 . Utility 6 | . . . . . 3 3 . Weapon 19 | . . . 1 . 11 6 1 Highest Loss Streak 9 | . . 2 3 . 6 9 1 To Critical Strikes . | . . . . . . . . Average Slot Usage (%) 84 | . 88 96 98 100 83 65 21 Engine 7 | . 14 11 10 11 6 3 . Leg 30 | . 28 41 43 44 26 20 . Device 5 | . . . . . 8 . 6 Storage 8 | . 14 11 11 11 7 5 . Processor 8 | . 3 11 11 11 7 13 13 Protection 1 | . . . . . 1 3 . Energy Gun 5 | . . . 3 11 5 2 . Energy Cannon 1 | . . . . . 2 3 . Ballistic Gun 8 | . 28 18 7 10 7 2 1 Ballistic Cannon 3 | . . 2 9 . 4 1 . Naked Turns . | . . . . . . . . Heaviest Build 60 | 13 13 30 31 31 60 50 5 Greatest Support 76 | 20 20 40 40 40 60 76 3 Greatest Overweight (x) 2 | . . . . . 2 1 1 Average Overweight (x) . | . . . . . . . . Largest Inventory Capacity 15 | 8 8 15 15 15 15 15 5 Average Capacity 14 | 6 8 11 15 15 15 14 5 Most Carried 15 | 5 7 9 9 12 15 12 3 Average Carried 9 | 2 4 6 7 11 11 8 2 Final Capacity 15 | 8 8 15 15 15 15 5 5 Final Carried 12 | 2 6 8 7 12 9 2 3 Class Distribution -------------------- 44% | Scavenger-Mutant 28% | Scavenger-Gunner 12% | Mutant 10% | Scavenger-Tank 3% | Gunner Dominant Class ---------------- Mutant | -10/Materials Scavenger-Mutant | -9/Materials Scavenger-Mutant | -9/Storage Scavenger-Mutant | -9/Recycling Scavenger-Gunner | -7/Factory Scavenger-Mutant | -6/Factory Mutant | -6/Extension Resources | -11 -10 -9 -9 -9 -7 -6 -6 ----------- Run | Jun Mat Mat Sto Rec Fac Fac Ext Matter Collected 2024 | 200 132 88 193 75 946 339 51 Remotely . | . . . . . . . . Salvage Created 3083 | . 294 186 219 52 1839 396 97 Parts 145 | . 16 10 12 4 85 9 9 Haulers Intercepted . | . . . . . . . . Recyclers Shooed 4 | . 1 . . . 2 1 . Parts Field Recycled . | . . . . . . . . Retrieved Matter . | . . . . . . . . Parts Self-Destructed . | . . . . . . . . Prevented . | . . . . . . . . Kills | -11 -10 -9 -9 -9 -7 -6 -6 ------- Run | Jun Mat Mat Sto Rec Fac Fac Ext Combat Hostiles Destroyed 66 | . 4 4 6 1 40 7 4 Guns 44 | . 4 4 1 1 26 4 4 Cannons 19 | . . . 5 . 12 2 . AOE 2 | . . . . . 2 . . Classes Destroyed 14 | . 4 . 2 . 7 1 . Worker 5 | . 1 . . . 4 . . Recycler 3 | . 1 . . . 2 . . Operator 2 | . 1 . . . 1 . . Watcher 3 | . . . 1 . 1 1 . Swarmer 6 | . . . . . 2 . 4 Cutter 3 | . . . . . 3 . . Grunt 29 | . 4 4 2 . 16 3 . Brawler 1 | . . . . . . 1 . Duelist 3 | . . . . . 1 2 . Sentry 10 | . . . 4 1 5 . . Specialist 2 | . . . . . 2 . . Hunter 2 | . . . . . 2 . . Programmer 9 | . . . . . 8 1 . Heavy 1 | . . . . . 1 . . Best Kill Streak 8 | . 5 4 4 1 8 3 4 Combat Bots Only 5 | . 2 4 3 1 5 3 4 Max Kills in Single Turn 3 | . 1 1 1 1 3 1 1 Gunslinging . | . . . . . . . . Exploded 2 | . . . . . 2 . . Melee . | . . . . . . . . Uniques/NPCs Destroyed . | . . . . . . . . Combat | -11 -10 -9 -9 -9 -7 -6 -6 -------- Run | Jun Mat Mat Sto Rec Fac Fac Ext Damage Taken 6880 | . 196 230 486 30 3476 1990 472 Core 1360 | . 13 18 38 . 426 494 371 Absorbed by Shields . | . . . . . . . . Redirected to Shielding 35 | . . . . . . 35 . Regen/Repaired (Parts) 108 | . . 78 . . 30 . . Core Remaining (%) 79 | 100 94 . . 86 39 . . Volleys Fired 247 | . 20 15 31 2 131 39 9 Largest 4 | . 2 2 2 2 4 3 1 Hottest 218 | . 40 40 59 73 218 145 28 Shots Fired 567 | . 40 30 56 4 368 61 8 Gun 412 | . 40 30 25 4 263 42 8 Cannon 144 | . . . 26 . 99 19 . Launcher 11 | . . . 5 . 6 . . Special . | . . . . . . . . Kinetic 325 | . 40 30 51 2 175 19 8 Thermal 193 | . . . . 2 154 37 . Explosive 9 | . . . 5 . 4 . . Electromagnetic 40 | . . . . . 35 5 . Robot Hit Streak 18 | . 8 7 10 13 18 13 16 Robot Miss Streak 5 | . 4 2 3 . 5 2 2 Penetration Max . | . . . . . . . . Secondary Targets 8 | . 2 1 . . 5 . . Max Gunslinging Chain 1 | . 1 1 . . 1 . . Shots Hit Robots 390 | . 24 24 40 2 243 51 6 Core Hits 184 | . 17 13 11 2 112 24 5 Critical Kills . | . . . . . . . . Critical Parts Destroyed 2 | . . 1 . . 1 . . Critical Strikes 12 | . . 1 3 . 6 2 . Burn 5 | . . . . . 4 1 . Destroy 2 | . . 1 . . 1 . . Blast 5 | . . . 3 . 1 1 . Melee Attacks . | . . . . . . . . Impact . | . . . . . . . . Slashing . | . . . . . . . . Piercing . | . . . . . . . . Sneak Attacks . | . . . . . . . . Combat Hostiles . | . . . . . . . . Follow-up Attacks . | . . . . . . . . Damage Inflicted 7861 | . 261 239 631 46 5488 1083 113 Guns 4619 | . 261 236 183 46 3162 618 113 Cannons 2385 | . . . 448 . 1505 432 . Explosions 811 | . . . . . 811 . . Melee . | . . . . . . . . Ramming 46 | . . 3 . . 10 33 . Kinetic 3935 | . 261 236 631 21 2339 334 113 Thermal 3063 | . . . . 25 2370 668 . Explosive 373 | . . . . . 373 . . Electromagnetic 444 | . . . . . 396 48 . Impact . | . . . . . . . . Slashing . | . . . . . . . . Piercing . | . . . . . . . . Highest Corruption 6 | . . . . . 6 4 4 Average Corruption 3 | . . . . . 3 3 4 Corruption Purged . | . . . . . . . . Corruption Blocked 8 | . . . . . 8 . . Effects 32 | . . . . . 26 3 3 Message Errors 4 | . . . . . 3 . 1 Matter Fused 5 | . . . . . 5 . . Heat Flow Errors 6 | . . . . . 5 1 . Energy Discharges 2 | . . . . . 1 1 . Parts Rejected 1 | . . . . . 1 . . Parts Fused 1 | . . . . . 1 . . Data Loss (minor) 6 | . . . . . 6 . . Data Loss (major) 1 | . . . . . 1 . . Misfires 1 | . . . . . . 1 . Alerts 2 | . . . . . 1 . 1 Weapon Failures 3 | . . . . . 2 . 1 Overload Shots . | . . . . . . . . Overflow Damage 22 | . . . . . 22 . . Projectiles 1 | . . . . . 1 . . Explosions 21 | . . . . . 21 . . Melee . | . . . . . . . . Knockbacks 8 | . . . 4 . 4 . . Impact . | . . . . . . . . Kinetic 7 | . . . 3 . 4 . . Secondary 1 | . . . 1 . . . . Self-Inflicted Damage 208 | . . . 44 . 164 . . Shots 6 | . . . 2 . 4 . . Rammed . | . . . . . . . . Targets Rammed 8 | . . 1 . . 1 6 . Kicked 8 | . . 1 . . 1 6 . Crushed . | . . . . . . . . Highest Temperature 477 | . 16 12 42 3 477 142 . Average Temperature 87 | . 12 5 14 2 111 62 . Received Heat Transfer 2043 | . 114 132 225 9 798 684 81 Effects 8 | . . . . . 8 . . Shutdowns 1 | . . . . . 1 . . Energy Bleed 1 | . . . . . 1 . . Interference 5 | . . . . . 5 . . Damage (minor) 1 | . . . . . 1 . . Siege Activations . | . . . . . . . . Robots Corrupted . | . . . . . . . . Combat Hostiles . | . . . . . . . . Parts Fried . | . . . . . . . . Impact Corruptions 1 | . . . 1 . . . . Robots Melted 1 | . . . . . . 1 . Combat Hostiles 1 | . . . . . . 1 . Parts Melted 12 | . . . . . 10 2 . Heat Transferred 6733 | . . . . 74 5364 1295 . Parts Sabotaged . | . . . . . . . . Parts Stolen . | . . . . . . . . Parts Stripped . | . . . . . . . . Power Chain Reactions 3 | . . . . . 3 . . Missiles Intercepted . | . . . . . . . . Alert | -11 -10 -9 -9 -9 -7 -6 -6 ------- Run | Jun Mat Mat Sto Rec Fac Fac Ext Peak Influence 527 | . 160 172 263 56 527 351 233 Initial 257 | . . 67 72 24 . 257 63 Average 154 | . 106 138 165 26 179 242 142 Maximum Alert Level 2 | . . . 1 . 2 1 1 Low Security (%) 60 | 100 100 100 67 100 47 24 78 Level 1 38 | . . . 32 . 50 75 21 Level 2 . | . . . . . 1 . . Level 3 . | . . . . . . . . Level 4 . | . . . . . . . . Level 5 . | . . . . . . . . High Security . | . . . . . . . . Max Security . | . . . . . . . . Squads Dispatched 24 | . . . 2 . 19 2 1 Investigation 4 | . . . . . 3 . 1 Extermination 7 | . . . . . 6 1 . Reinforcement 9 | . . . 2 . 7 . . Assault . | . . . . . . . . Garrison 4 | . . . . . 3 1 . Intercept . | . . . . . . . . Searches Triggered . | . . . . . . . . Construction Impeded 1 | . . . . . 1 . . Haulers Reinforced 1 | . . . . . 1 . . Active Scanning Responses . | . . . . . . . . Cargo Convoy Interrupts 1 | . . . . . 1 . . Stealth | -11 -10 -9 -9 -9 -7 -6 -6 --------- Run | Jun Mat Mat Sto Rec Fac Fac Ext Distress Signals 4 | . . . 3 . 1 . . Communications Jammed . | . . . . . . . . Distress Signals . | . . . . . . . . Times Spotted 105 | . 8 5 11 1 53 16 11 Peak Tracking Total 6 | . 3 4 6 1 6 6 6 Tactical Retreats 9 | . . 1 . . 4 3 1 Traps | -11 -10 -9 -9 -9 -7 -6 -6 ------- Run | Jun Mat Mat Sto Rec Fac Fac Ext Traps Triggered 5 | . . . . . 4 1 . Indirectly . | . . . . . . . . Trap Hack Attempts . | . . . . . . . . Triggered . | . . . . . . . . Disarmed . | . . . . . . . . Reprogrammed . | . . . . . . . . Reused . | . . . . . . . . Traps Extracted . | . . . . . . . . Installed . | . . . . . . . . Triggered 2 | . . . . . 2 . . Machines | -11 -10 -9 -9 -9 -7 -6 -6 ---------- Run | Jun Mat Mat Sto Rec Fac Fac Ext Machines Disabled 7 | . . . . . 6 1 . Max in Single Turn 2 | . . . . . 2 1 . Machines Repaired . | . . . . . . . . Machines Sabotaged . | . . . . . . . . Overloaded Fab Kills . | . . . . . . . . Hacking | -11 -10 -9 -9 -9 -7 -6 -6 --------- Run | Jun Mat Mat Sto Rec Fac Fac Ext Machines Accessed 26 | . . 4 1 8 10 2 1 Terminals 16 | . . 2 1 3 7 2 1 Fabricators . | . . . . . . . . Repair Stations 2 | . . 1 . . 1 . . Recycling Units 8 | . . 1 . 5 2 . . Scanalyzers . | . . . . . . . . Garrison Access . | . . . . . . . . Total Hacks 52 | . . 10 3 11 19 3 6 Successful 24 | . . 4 1 8 9 2 . Failed 28 | . . 6 2 3 10 1 6 Catastrophic 12 | . . 3 1 1 4 . 3 Database Lockouts . | . . . . . . . . Manual 1 | . . . 1 . . . . Terminals 36 | . . 6 3 4 14 3 6 Fabricators . | . . . . . . . . Repair Stations 5 | . . 2 . . 3 . . Recycling Units 11 | . . 2 . 7 2 . . Scanalyzers . | . . . . . . . . Garrison Access . | . . . . . . . . Terminal Hacks 15 | . . 2 1 4 6 2 . Record 3 | . . . . . 3 . . Robot Analysis 2 | . . 1 . 1 . . . Open Door 1 | . . . . . . 1 . Open DSF 1 | . . . . . . 1 . Branch Access Points 3 | . . 1 1 1 . . . Emergency Access Points 1 | . . . . . 1 . . Assault Status 1 | . . . . . 1 . . Zone Layout 3 | . . . . 2 1 . . Fabricator Hacks . | . . . . . . . . Repair Station Hacks 4 | . . 2 . . 2 . . Scan Component 2 | . . 1 . . 1 . . Repair 2 | . . 1 . . 1 . . Recycling Unit Hacks 5 | . . . . 4 1 . . Retrieve Components 5 | . . . . 4 1 . . Scanalyzer . | . . . . . . . . Garrison Access Hacks . | . . . . . . . . Unauthorized Hacks . | . . . . . . . . Terminals . | . . . . . . . . Fabricators . | . . . . . . . . Repair Stations . | . . . . . . . . Recycling Units . | . . . . . . . . Scanalyzers . | . . . . . . . . Garrison Access . | . . . . . . . . Data Cores Recovered 1 | . 1 . . . . . . Used . | . . . . . . . . Hacking Detections 14 | . . 4 1 2 5 1 1 Full Trace Events 3 | . . . . . 2 . 1 Feedback Events 1 | . . . . . 1 . . Corruption 1 | . . . . . 1 . . Feedback Blocked . | . . . . . . . . Robot Schematics Acquired . | . . . . . . . . Robots Built . | . . . . . . . . Authchips . | . . . . . . . . Time . | . . . . . . . . Total Robot Build Rating . | . . . . . . . . Part Schematics Acquired . | . . . . . . . . Parts Built . | . . . . . . . . Authchips . | . . . . . . . . Time . | . . . . . . . . Total Part Build Rating . | . . . . . . . . Parts Repaired 2 | . . 1 . . 1 . . Time 70 | . . 26 . . 44 . . Parts Recycled . | . . . . . . . . Recycled Matter . | . . . . . . . . Retrieved Matter . | . . . . . . . . Retrieved Components 13 | . . . . 10 3 . . Parts Scanalyzed . | . . . . . . . . Part Schematics Acquired . | . . . . . . . . Parts Damaged . | . . . . . . . . Bothacking | -11 -10 -9 -9 -9 -7 -6 -6 ------------ Run | Jun Mat Mat Sto Rec Fac Fac Ext Used RIF Installer . | . . . . . . . . Robots Hacked . | . . . . . . . . Non-combat . | . . . . . . . . Combat . | . . . . . . . . Robot Hacks Applied . | . . . . . . . . Relay Couplers Released 1 | . . . . . 1 . . Machine Destruction 1 | . . . . . 1 . . Fabnet Peak Effective % . | . . . . . . . . Robots Rewired . | . . . . . . . . Allies Hacked . | . . . . . . . . Hacks Repelled . | . . . . . . . . Allies | -11 -10 -9 -9 -9 -7 -6 -6 -------- Run | Jun Mat Mat Sto Rec Fac Fac Ext Total Allies . | . . . . . . . . Largest Group . | . . . . . . . . Highest-Rated Group . | . . . . . . . . Highest-Rated Ally . | . . . . . . . . Total Orders . | . . . . . . . . Ally Attacks . | . . . . . . . . Total Damage . | . . . . . . . . Kills . | . . . . . . . . Allies Corrupted . | . . . . . . . . Allies Melted . | . . . . . . . . Intel | -11 -10 -9 -9 -9 -7 -6 -6 ------- Run | Jun Mat Mat Sto Rec Fac Fac Ext Robot Analysis Total 2 | . . 1 . 1 . . . Derelict Logs Recovered . | . . . . . . . . Drone Launches . | . . . . . . . . Drone Recoveries . | . . . . . . . . Exploration | -11 -10 -9 -9 -9 -7 -6 -6 ------------- Run | Jun Mat Mat Sto Rec Fac Fac Ext Turns Passed 5452 | 64 236 285 439 776 3013 531 108 Spaces Moved 3132 | 34 140 148 232 590 1521 302 165 Core 226 | 11 . . . . . 50 165 Treads . | . . . . . . . . Legs 2906 | 23 140 148 232 590 1521 252 . Wheels . | . . . . . . . . Hover . | . . . . . . . . Flight . | . . . . . . . . Fastest Speed 50 | 50 120 120 120 120 120 50 50 Average Speed 131 | 97 120 120 120 120 149 126 50 Slowest Speed 260 | 120 120 120 120 120 260 200 100 Overloaded Moves . | . . . . . . . . Propulsion Burnouts . | . . . . . . . . Robots Hopped . | . . . . . . . . Cave-ins Triggered . | . . . . . . . . Exploration Rate (%) 31 | 4 27 12 28 98 41 10 33 Regions Visited 7 Branch Regions 3 Pre-discovered Areas . | . . . . . . . . Known Exits Taken 6 | . 1 1 1 1 1 1 . Unknown Exits Taken 1 | 1 . . . . . . . Scrap Searched . | . . . . . . . . Spaces Dug 21 | . . . 21 . . . . Terrain Destroyed 65 | . . . 22 . 41 2 . Melee . | . . . . . . . . Projectile 7 | . . . 1 . 4 2 . AOE 58 | . . . 21 . 37 . . Terrain Rammed . | . . . . . . . . Walls Destroyed . | . . . . . . . . Machines Disabled . | . . . . . . . . Actions | -11 -10 -9 -9 -9 -7 -6 -6 --------- Run | Jun Mat Mat Sto Rec Fac Fac Ext Total 4014 | 64 172 229 341 653 1984 391 180 Wait 473 | 19 7 49 71 57 250 17 3 Move 3125 | 33 139 147 231 589 1520 301 165 Hop . | . . . . . . . . Pick Up 73 | 6 5 8 3 4 33 12 2 Fast Attach 5 | 2 . 1 . . 2 . . Attach 68 | 4 1 4 4 . 39 15 1 Detach 4 | . . . . . 4 . . Swap 6 | . . 1 1 1 3 . . Drop 5 | . . 3 . . 1 1 . Fire 247 | . 20 15 31 2 131 39 9 Melee . | . . . . . . . . Ram . | . . . . . . . . Kick 8 | . . 1 . . 1 6 . Crush . | . . . . . . . . Escape Stasis . | . . . . . . . . Rewire . | . . . . . . . . Trap . | . . . . . . . . Miscellaneous . | . . . . . . . . Route ------- -11/Junkyard -10/Materials (discovered 2 exits: *Mat / [*Min]) -9/Materials (discovered 4 exits: Min x2 / *Sto x2) -9/Storage -9/Recycling -7/Factory (discovered 2 exits: *Fac x2) -6/Factory -6/Extension History --------- Turn | Location | Event 26 | -11/Junkyard | Discovered new exit (range 16) 65 | -11/Junkyard | Entered Materials 131 | -10/Materials | Discovered new exit (range 16) 235 | -10/Materials | Discovered new exit (range 12) 262 | -10/Materials | Identified exit to Materials 301 | -10/Materials | Entered another Materials area 301 | -9/Materials | Evolved 2 slots: Propulsion x2 318 | -9/Materials | Identified exit to Mines 318 | -9/Materials | Identified exit to Storage 323 | -9/Materials | Build established: Mutant 511 | -9/Materials | Repaired Assault Rifle 586 | -9/Materials | Entered Storage 715 | -9/Storage | Build established: Scavenger-Mutant 895 | -9/Storage | Lost 3 parts (1p1n1w) 900 | -9/Storage | Identified exit to Recycling 1023 | -9/Storage | Used back door to open Recycling access 1025 | -9/Storage | Entered Recycling 1030 | -9/Recycling | Found Scrap Engine 1196 | -9/Recycling | Discovered new exit (range 16) 1240 | -9/Recycling | Identified exit to Factory 1801 | -9/Recycling | Entered Factory 1801 | -7/Factory | Evolved 4 slots: Utility x2, Weapon x2 2203 | -7/Factory | Build established: Scavenger-Tank 2216 | -7/Factory | Repaired Arc Projector 2501 | -7/Factory | Lost 3 parts (1n1u1w) 2630 | -7/Factory | Lost 3 parts (2n1w) 2650 | -7/Factory | Cargo convoy interrupted 2965 | -7/Factory | Lost 3 parts (2n1w) 3086 | -7/Factory | Build established: Scavenger-Gunner 3166 | -7/Factory | Garrison activated, responded to threat 3208 | -7/Factory | Lost 4 parts (1n3w) 3279 | -7/Factory | Discovered new exit (range 15) 3341 | -7/Factory | Lost 3 parts (1p1u1w) 3446 | -7/Factory | Build established: Scavenger-Mutant 4198 | -7/Factory | Build established: Scavenger-Gunner 4322 | -7/Factory | Core integrity fell below 50% 4771 | -7/Factory | Discovered new exit (range 16) 4812 | -7/Factory | Identified exit to Factory 4814 | -7/Factory | Entered another Factory area 4814 | -6/Factory | Evolved 2 slots: Power x1, Propulsion x1 4830 | -6/Factory | Lost 6 parts (1p1n1u3w) 5010 | -6/Factory | Lost 6 parts (1p3n1u1w) 5194 | -6/Factory | Lost 6 parts (2n4w) 5257 | -6/Factory | Garrison activated, responded to threat 5318 | -6/Factory | Core integrity fell below 50% 5343 | -6/Factory | Discovered new exit (range 5) 5344 | -6/Factory | Identified exit to Extension 5345 | -6/Factory | Entered Extension 5348 | -6/Extension | Lost 9 parts (2p4n2u1w) 5443 | -6/Extension | Spotted B-75 Beast 5445 | -6/Extension | Core integrity fell below 20% 5448 | -6/Extension | Spotted B-75 Beast 5453 | -6/Extension | Destroyed by B-75 Beast with Heavy Plasma Cannon Last Messages --------------- S-27 Virus destroyed. Slug penetrates S-27 Virus. Slug penetrates Wall. System corrupted: Gauss Rifle jammed. Slug penetrates S-27 Virus. S-27 Virus destroyed. R-10 Processor collects VTOL Module. Slug penetrates S-27 Virus. S-27 Virus destroyed. Acquired 28 matter. R-10 Processor collects Lgt. Nuclear Core. Acquired 23 matter. Gauss Rifle destroyed. Acquired Lgt. Nuclear Core. N/#QFZO|QT5I1IE%YQ=SVMIZIWWB<&5M R-10 Processor knocked back. U-05 Engineer builds a Wall. Connecting with Door Terminal... ALERT: Suspicious activity at Terminal E001. Dispatching Investigation squad. Map ----- +----------------------------------------------------+ | ?????????????????????????????????????????????????? | | ?????????????????????????????????????????????????? | | ?????????????????????????????????????????????????? | | ?????????????????????????????????????????????????? | | ?????????????????????????????????????????????????? | | ?????????????????????????????????????????????????? | | ?????????????????????????????????????????????????? | | ?????????????????????????????????????????????????? | | ????????????????????? #??????????????????????????? | | ????????????????????? #??##??#???????????????????? | | ???????????????????## ### ## #???????????????????? | | ??????????????????#"" "" "??????????????????? | | ??????????????????# " " Y " ????????????????? | | ??????????????????# Y ??????????????? | | ??????????????????# #?????????????? | | ################### ##????????????? | | ???????????? | | R ???????????? | | ??????????? | | R % R ??????????? | | % % ???????????? | | ###################uBB BB #?????????????? | | ?????????????????## BB BB #?????????????? | | ??????????????????# #?????????????? | | ??????????????????# #?????????????? | | ??????????????????# @ #?????????????? | | ??????????????????######T#"""#######?????????????? | | ???????????????????????###???????????????????????? | | ?????????????????????????????????????????????????? | | | | | | | | | | | | | | | | | | | | | | | | | | | | | | | | | | | | | | | | | | | +----------------------------------------------------+ Best States ------------- Heat Dissipation 48 Energy Generation 16 Energy Capacity 290 Matter Stores 300 Matter Capacity 300 Sight Range 22 Terrain Scan Density 10 Armor Coverage 225 Resistance: KI 30 Core Shielding 20 Evasion (%) 55 Targeting Accuracy 8 Energy Filtering 30 Trap Extractor Capacity 4 Item Schematics ----------------- None Robot Schematics ------------------ None Fabricated ------------ Nothing Alien Tech Used ----------------- None Achievements -------------- \\IAMDERELICT Challenges ------------ None Game ------ Seed SiegeNodeLeg Manual? 0 Play Time 00:57:57 Cumulative 12.9 hours Start 2023.08.05 @ 16:41:27 End 2023.08.05 @ 18:07:18 Sessions 2 Manual Loads 0 Difficulty Rogue Special Mode None Game No. 21 Rogue 21 Adventurer 0 Explorer 0 Win Type - Total 0 Types 0/0/0/0/0/0/0/0/0 Lore% 13 Gallery% 16 Achievement% 13 Wizard Run 0 Options --------- ASCII 0 Keyboard 0 Movement Mouse Keybinds 0 Fullscreen 1 Font 18/SmallcapsGlow Map View 76x50 Tactical HUD 0 Map Filters NONE Filters NONE Steam 1 RUN: 621693a8-75a1-4a28-a980-9167d6e70fa2